fUSD/lending_fUSD_20240719
["ID","MTS","AMOUNT","RATE_DAILY","PERIOD"]
[332622727,1721369432479,-1612.23,0.00018792,2]
[332622728,1721369432490,-1500.0,0.00018811,5]
[332622729,1721369432500,-440.86,0.00018821,2]
[332622730,1721369432512,-169.66,0.00018829,2]
[332622731,1721369432521,-206.52,0.00018846,2]
[332622732,1721369432531,-635.99,0.00018849,2]
[332622733,1721369432541,-250.0,0.00018873,2]
[332622734,1721369432551,-150.0,0.00018888,2]
[332622735,1721369432561,-1173.52364939,0.00018892,2]
[332622736,1721369432571,-20655.9,0.00018902,2]
[332622737,1721369432583,-250.0,0.00019,2]
[332622738,1721369432592,-724.0,0.00019135,2]
[332622739,1721369432602,-187.41,0.00019254,2]
[332622740,1721369432612,-1000.0,0.00019331,2]
[332622741,1721369432623,-178.44,0.00019425,2]
[332622742,1721369432632,-1854.76022739,0.00019599,2]
[332622743,1721369432642,-418.55857021,0.00019725,2]
[332622744,1721369432652,-150.0,0.00019937,4]
[332622745,1721369432661,-346.93460697,0.00019999,2]
[332622746,1721369432671,-347.5,0.00020384,2]
[332622747,1721369432681,-200.0,0.000204,7]
[332622748,1721369432691,-500.0,0.000205,7]
[332622749,1721369432701,-175.4,0.00020536,2]
[332622750,1721369432711,-1008.10976634,0.0002058,2]
[332622751,1721369432722,-800.0,0.000206,7]
[332622752,1721369432731,-1100.0,0.000207,7]
[332622753,1721369432742,-17561.0,0.0002079,2]
[332622754,1721369432751,-1400.0,0.000208,7]
[332622755,1721369432763,-356.0,0.000208,2]
[332622756,1721369432772,-1000.0,0.000208,2]
[332622757,1721369432781,-225.0,0.000208,2]
[332622758,1721369432791,-674.04080023,0.0002089,3]
[332622759,1721369432801,-749.4528,0.0002089,2]
[332622760,1721369432810,-208.50559239,0.00020895,2]
[332622761,1721369432820,-984.24440982,0.00020895,2]
[332622762,1721369432830,-227.43774807,0.00020899,2]
[332622763,1721369432839,-6800.9657,0.000209,2]
[332622764,1721369432849,-9706.9767,0.000209,2]
[332622765,1721369432859,-505.6483,0.000209,2]
[332622766,1721369432868,-2508.7196,0.000209,2]
[332622767,1721369432878,-2320.71215759,0.000209,2]
[332622768,1721369432891,-325.95694241,0.000209,2]
[332622769,1721369432901,-56.36057214,0.000209,2]
[332622770,1721369432913,-664.57727663,0.000209,2]
[332622771,1721369432925,-188.83785123,0.000209,2]
[332622772,1721369432935,-277.78558457,0.000209,2]
[332622778,1721369434107,-634.43931543,0.000209,2]
[332622779,1721369434117,-1489.90010016,0.000209,2]
[332622780,1721369434127,-200.0,0.000209,7]
[332622781,1721369434137,-1092.66129192,0.000209,2]
[332622782,1721369434149,-4051.00227482,0.000209,2]
[332622783,1721369434168,-2356.33643326,0.000209,2]
[332622784,1721369434177,-231.2869,0.000209,2]
[332622785,1721369434191,-151.34842727,0.000209,2]
[332622786,1721369434200,-319.56357629,0.000209,2]
[332622787,1721369434210,-220.48,0.00020904,3]
[332622788,1721369434219,-471.29,0.00020904,2]
[332622789,1721369434229,-157.071907,0.00020948,2]
[332622790,1721369434239,-157.071907,0.00020948,2]
[332622791,1721369434248,-157.071907,0.00020948,2]
[332622792,1721369434257,-157.071907,0.00020948,2]
[332622793,1721369434268,-150.0,0.00020986,4]
[332622794,1721369434279,-1280.37537846,0.0002099,3]
[332622795,1721369434291,-425.0549522,0.0002099,3]
[332622796,1721369434300,-137.4446792,0.0002099,3]
[332622797,1721369434311,-806.77598637,0.0002099,3]
[332622798,1721369434322,-938.54743164,0.0002099,3]
[332622799,1721369434333,-2114.71810621,0.0002099,3]
[332622800,1721369434344,-2000.0,0.0002099,3]
[332622804,1721369438170,-609.10961846,0.00016927,2]
[332622805,1721369438182,-2333.75534537,0.00016927,2]
[332622806,1721369438213,-268.48503617,0.00016927,2]
[332622807,1721369438223,-5539.84486369,0.000209,2]
[332622808,1721369438235,-785.92464769,0.000209,2]
[332622809,1721369438246,-782.62207443,0.000209,2]
[332622810,1721369438267,-391.60841419,0.000209,2]
[332622811,1721369438278,-2649.59520102,0.0002099,3]
[332622812,1721369438304,-1148.5043835,0.0002099,3]
[332622813,1721369438315,-301.94267,0.0002099,3]
[332622814,1721369438327,-374.94082365,0.0002099,3]
[332622815,1721369438338,-877.96122765,0.0002099,3]
[332622816,1721369438349,-607.41634923,0.0002099,3]
[332622941,1721369440047,-801.79576519,0.0002099,3]
[332622943,1721369440060,-1226.66149548,0.0002099,3]
[332622946,1721369440073,-666.1095711,0.0002099,3]
[332622949,1721369440101,-1282.73626016,0.0002099,3]
[332622952,1721369440113,-4547.08758781,0.0002099,3]
[332622954,1721369440124,-3604.54927796,0.0002099,3]
[332622956,1721369440135,-6584.77830081,0.0002099,3]
[332622957,1721369440251,-62433.76788165,0.0002099,3]
[332622958,1721369440264,-1751.0,0.0002099,3]
[332622959,1721369440276,-294.675,0.0002099,3]
[332622960,1721369440288,-55545.00000004,0.0002099,3]
[332622961,1721369440299,-583.2607277,0.0002099,3]
[332622962,1721369440319,-1197.8095201,0.0002099,3]
[332622963,1721369440355,-861.28499999,0.0002099,3]
[332622964,1721369441264,-1312.16685292,0.0002099,3]
[332622965,1721369441278,-495.55389865,0.0002099,3]
[332622982,1721369443826,-16130.6152453,0.0002099,3]
[332622984,1721369443839,-513.18500005,0.0002099,3]
[332622986,1721369443852,-1496.0,0.0002099,3]
[332622987,1721369443864,-2790.39273197,0.0002099,3]
[332622988,1721369444496,-74939.89428065,0.0002099,3]
[332622989,1721369444505,-425.12,0.00020995,2]
[332622990,1721369444514,-165.16,0.00020995,2]
[332622991,1721369444525,-150.0,0.00020995,2]
[332622992,1721369444534,-529.43,0.00020995,2]
[332622993,1721369444544,-165.16,0.00020995,2]
[332622994,1721369444553,-709.37,0.00020995,2]
[332622995,1721369444562,-150.0,0.00020995,2]
[332622996,1721369444571,-425.12,0.00020995,2]
[332622997,1721369444581,-529.43,0.00020995,2]
[332622998,1721369444590,-150.0,0.00020995,2]
[332622999,1721369444599,-150.0,0.00020995,2]
[332623000,1721369444607,-150.0,0.00020995,2]
[332623001,1721369444616,-150.75,0.00020995,2]
[332623002,1721369444626,-150.0,0.00020995,2]
[332623003,1721369444635,-150.0,0.00020995,2]
[332623004,1721369444644,-150.0,0.00020995,2]
[332623005,1721369444653,-166.4,0.00020995,2]
[332623006,1721369444662,-150.0,0.00020995,2]
[332623007,1721369444671,-167.61,0.00020995,2]
[332623008,1721369444680,-150.0,0.00020995,2]
[332623009,1721369444689,-360.9,0.00020995,2]
[332623010,1721369444698,-150.0,0.00020995,2]
[332623011,1721369444708,-150.0,0.00020995,2]
[332623012,1721369444717,-165.16,0.00020995,2]
[332623013,1721369444726,-151.65,0.00020995,2]
[332623014,1721369444735,-150.0,0.00020995,2]
[332623015,1721369444744,-150.0,0.00020995,2]
[332623016,1721369444753,-529.43,0.00020995,2]
[332623017,1721369444762,-165.16,0.00020995,2]
[332623018,1721369444773,-1066.01,0.00020995,2]
[332623019,1721369444782,-150.0,0.00020995,2]
[332623020,1721369444791,-152.02,0.00020995,2]
[332623021,1721369444800,-165.16,0.00020995,2]
[332623022,1721369444810,-150.58,0.00020995,2]
[332623023,1721369444820,-150.0,0.00020995,2]
[332623024,1721369444829,-150.0,0.00020995,2]
[332623025,1721369444839,-165.16,0.00020995,2]
[332623026,1721369444848,-150.0,0.00020995,2]
[332623027,1721369444857,-150.0,0.00020995,2]
[332623028,1721369444867,-425.12,0.00020995,2]
[332623029,1721369444876,-150.0,0.00020995,2]
[332623030,1721369444885,-150.0,0.00020995,2]
[332623031,1721369444895,-431.06,0.00020995,2]
[332623032,1721369444905,-150.0,0.00020995,2]
[332623033,1721369444914,-150.0,0.00020995,2]
[332623034,1721369444923,-1000.0,0.00020999,2]
[332623035,1721369444933,-438.34281067,0.00020999,2]
[332623036,1721369444943,-201.76554012,0.00020999,5]
[332623037,1721369444953,-150.34969157,0.00020999,2]
[332623038,1721369444962,-331.93953662,0.00020999,2]
[332623039,1721369444971,-1159004.87962805,0.00021,5]
[332623040,1721369444996,-3783.78858723,0.00021,5]
[332623041,1721369445008,-5477.48199972,0.00021,5]
[332623042,1721369445020,-489.98199999,0.00021,5]
[332623043,1721369445032,-902.31682698,0.00021,5]
[332623044,1721369445043,-929223.16729451,0.00021,5]
[332623045,1721369445055,-2415.26216506,0.00021,5]
[332623051,1721369446935,-244.74507675,0.00020999,2]
[332623052,1721369446945,-311.55492325,0.00021,5]
[332623053,1721369446994,-6423.60389785,0.00021,5]
[332623054,1721369447005,-8021.15857371,0.00021,5]
[332623055,1721369447017,-1250.0945842,0.00021,5]
[332623056,1721369447029,-2128.84910156,0.00021,5]
[332623057,1721369447040,-891.1628366,0.00021,5]
[332623058,1721369447153,-1059.29097673,0.00021,5]
[332623066,1721370334744,2235.54377464,0.00011,2]
[332623068,1721370389628,90733.26584619,0.00011,2]
[332623069,1721370460514,8769.64301897,0.00011,2]
[332623070,1721370479696,1190.44950728,0.0001,2]
[332623086,1721370596517,-12308.94912659,0.00012121,2]
[332623087,1721370596540,-948.63152729,0.00012121,2]
[332623088,1721370596562,-532.71874759,0.00012121,2]
[332623089,1721370608322,2991.5819992,0.00012021,2]
[332623090,1721370609984,-300.0,0.00013301,2]
[332623091,1721370610009,-300.0,0.00013303,2]
[332623092,1721370610039,-529.72789881,0.0001331,2]
[332623093,1721370610065,-281.0,0.00013578,2]
[332623094,1721370610088,-202.00418831,0.00013578,2]
[332623095,1721370610110,-710.0,0.00013578,2]
[332623096,1721370610133,-570.7977,0.00013579,2]
[332623097,1721370610155,-8250.59773068,0.00013679,2]
[332623098,1721370610179,-534.9197,0.0001388,2]
[332623099,1721370610206,-187.65503307,0.00013899,2]
[332623100,1721370610230,-546.12719248,0.000139,2]
[332623101,1721370610253,-150.0,0.00013989,2]
[332623102,1721370610279,-224155.539294,0.0001399,2]
[332623103,1721370610304,-331.93953662,0.00013999,2]
[332623104,1721370610334,-150.34969157,0.00013999,2]
[332623105,1721370610361,-968668.46063379,0.00014,2]
[332623116,1721370632200,-798.67560533,0.00013297,2]
[332623119,1721370632237,-299.6900001,0.00013297,2]
[332623122,1721370632253,-1700.0,0.00013297,2]
[332623125,1721370632269,-432.000004,0.00013297,2]
[332623128,1721370632290,-748.65194149,0.00013297,2]
[332623130,1721370632305,-16224.03686982,0.00013297,2]
[332623133,1721370632319,-529.72789881,0.00013303,2]
[332623135,1721370632332,-126713.52271167,0.00014,2]
[332623137,1721370632348,-472.14322502,0.00014,2]
[332623138,1721370632370,-2722.04110642,0.00014,2]
[332623139,1721370632391,-564.30069899,0.00014,2]
[332623140,1721370632413,-3255.09037,0.00014,2]
[332623141,1721370632439,-14705.20025256,0.00014,2]
[332623142,1721370632456,-3400.90408703,0.00014,2]
[332623143,1721370632487,-4475.52028849,0.00014,2]
[332623144,1721370632502,-2697.05711625,0.00014,2]
[332623145,1721370632517,-389.84087267,0.00014,2]
[332623146,1721370632533,-711.72882134,0.00014,2]
[332623147,1721370632547,-4545.15253759,0.00014,2]
[332623148,1721370632565,-1363.84746241,0.00014,2]
[332623149,1721370632601,-439.31847844,0.00014,2]
[332623150,1721370632617,-2559.38,0.00014,2]
[332623151,1721370632633,-455.85444,0.00014,2]
[332623152,1721370632650,-337.01913656,0.00014,2]
[332623153,1721370632742,-2906.62554695,0.00014,2]
[332623156,1721370632757,-11491.90858639,0.00014,2]
[332623161,1721370632774,-14846.21907029,0.00014,2]
[332623164,1721370632790,-335.08950845,0.00014,2]
[332623166,1721370632805,-276.52,0.00014,2]
[332623167,1721370632827,-306.20467746,0.00014,2]
[332623185,1721370638182,-251.9475,0.00014,2]
[332623187,1721370638193,-399.08923112,0.00014,2]
[332623228,1721370638931,-5420.81928955,0.00014,2]
[332623230,1721370638943,-129004.74257972,0.00014,2]
[332623234,1721370638972,-5436.33640423,0.00014,2]
[332623238,1721370639003,-2760.63825672,0.00014,2]
[332623240,1721370639014,-47562.56452375,0.00014,2]
[332623243,1721370639026,-2700.38430339,0.00014,2]
[332623245,1721370639041,-6661.06320593,0.00014,2]
[332623247,1721370639053,-2679.90297899,0.00014,2]
[332623250,1721370639070,-1662.12038026,0.00014,2]
[332623350,1721370640329,-6372.3,0.00014,2]
[332623351,1721370640341,-640.98643833,0.00014,2]
[332623352,1721370640353,-1159.35160256,0.00014,2]
[332623353,1721370640367,-409.15439696,0.00014,2]
[332623354,1721370640378,-76574.05423502,0.00014,2]
[332623355,1721370640455,-499.9996419,0.00014,2]
[332623356,1721370640467,-1569.31433009,0.00014,2]
[332623357,1721370640493,-85127.88657768,0.00014,2]
[332623358,1721370640504,-50392.77963228,0.00014,2]
[332623359,1721370640662,-266810.41120379,0.00014,2]
[332623360,1721370640674,-70264.24691589,0.00014,2]
[332623361,1721370640745,-5436.26185265,0.00014,2]
[332623364,1721370643849,-3337.0,0.0001386,2]
[332623365,1721370643862,-7376.66373214,0.00014,2]
[332623367,1721370643881,-5925.51205195,0.00014,2]
[332623370,1721370643892,-9013.5259233,0.00014,2]
[332623372,1721370643904,-1025.25340289,0.00014,2]
[332623374,1721370643915,-660.19,0.00014,2]
[332623376,1721370643927,-2084.09343301,0.00014,2]
[332623379,1721370643938,-1171938.23720703,0.00014,2]
[332623381,1721370643949,-292.35005528,0.00014,2]
[332623383,1721370643961,-340.188572,0.00014,2]
[332623386,1721370643973,-14566.77179293,0.00014,2]
[332623387,1721370643984,-405288.91283665,0.00014,2]
[332623397,1721370646298,-1829.50344809,0.00014,2]
[332623398,1721370646340,-369.15130269,0.00014,2]
[332623400,1721370646495,-2645.13642782,0.00014,2]
[332623401,1721370646698,-191.06580184,0.00014,2]
[332623403,1721370646745,-1058.18632061,0.00014,2]
[332623404,1721370646764,-377.28,0.00014,2]
[332623405,1721370646775,-670.5,0.00014,2]
[332623406,1721370646790,-1573.58351148,0.00014,2]
[332623407,1721370646854,-79727.67209175,0.00014,2]
[332623408,1721370646866,-384.50318454,0.00014,2]
[332623416,1721371295742,521.56986446,0.00011105,2]
[332623417,1721371329278,158.76844154,0.00011105,2]
[332623419,1721371345700,199.423868,0.00011105,2]
[332623420,1721371355072,166.63,0.00011138,2]
[332623421,1721371365391,7564.9532713,0.00011105,2]
[332623422,1721371372436,155.03968434,0.00011105,2]
[332623423,1721371381147,155.0,0.00011105,2]
[332623424,1721371386605,20354.6264405,0.00011105,2]
[332623425,1721371386780,291.06510836,0.00011105,2]
[332623426,1721371390415,155.0,0.00011105,2]
[332623427,1721371391417,300.16453991,0.00011105,2]
[332623428,1721371393925,300.16453991,0.00011105,2]
[332623429,1721371396263,155.0,0.00011105,2]
[332623430,1721371401733,291.06510836,0.00011105,2]
[332623431,1721371405228,158.76844154,0.00011105,2]
[332623433,1721371462376,7564.9532713,0.00011105,2]
[332623435,1721371480006,7564.9532713,0.00011105,2]
[332623436,1721371485050,20354.6264405,0.00011105,2]
[332623437,1721371495414,155.0,0.00011105,2]
[332623438,1721371509232,231.66696126,0.00011105,2]
[332623439,1721371575611,20354.6264405,0.00011105,2]
[332623440,1721371576566,150.34,0.00010978,2]
[332623441,1721371588422,155.0,0.00011105,2]
[332623442,1721371593418,1612.69215984,0.00011105,2]
[332623443,1721371593443,5952.26111146,0.00011105,2]
[332623444,1721371644598,150.0,0.00010811,2]
[332623445,1721371644623,150.0,0.00010811,2]
[332623446,1721371644649,150.0,0.00010811,2]
[332623447,1721371644675,205.06832322,0.00010811,2]
[332623448,1721371644702,181.42167678,0.00010811,2]
[332623449,1721371685917,150.0,0.00011105,2]
[332623450,1721371685941,150.0,0.00011105,2]
[332623451,1721371685965,150.0,0.00011105,2]
[332623452,1721371685990,150.0,0.00011105,2]
[332623453,1721371686013,150.0,0.00011105,2]
[332623454,1721371686036,150.0,0.00011105,2]
[332623455,1721371686058,150.0,0.00011105,2]
[332623456,1721371686081,150.0,0.00011105,2]
[332623457,1721371686104,150.0,0.00011105,2]
[332623458,1721371686127,150.0,0.00011105,2]
[332623459,1721371686150,150.0,0.00011105,2]
[332623460,1721371686173,150.0,0.00011105,2]
[332623461,1721371686196,150.0,0.00011105,2]
[332623462,1721371686222,150.0,0.00011105,2]
[332623463,1721371686245,150.0,0.00011105,2]
[332623464,1721371686269,150.0,0.00011105,2]
[332623465,1721371686293,150.0,0.00011105,2]
[332623466,1721371686316,150.0,0.00011105,2]
[332623467,1721371686339,150.0,0.00011105,2]
[332623468,1721371686362,150.0,0.00011105,2]
[332623469,1721371686386,150.0,0.00011105,2]
[332623470,1721371686409,150.0,0.00011105,2]
[332623471,1721371686432,150.0,0.00011105,2]
[332623472,1721371686455,150.0,0.00011105,2]
[332623473,1721371686476,150.0,0.00011105,2]
[332623474,1721371686500,150.0,0.00011105,2]
[332623475,1721371686524,150.0,0.00011105,2]
[332623476,1721371686547,150.0,0.00011105,2]
[332623477,1721371686571,3364.9532713,0.00011105,2]
[332623478,1721371692424,234.90364031,0.00011105,2]
[332623479,1721371712562,18958.74433738,0.00011105,2]
[332623485,1721371781907,150.0,0.00011105,2]
[332623486,1721371781928,27.04802666,0.00011105,2]
[332623487,1721371785089,155.0,0.00011105,2]
[332623494,1721371831507,-935.25814264,0.0001116,2]
[332623495,1721371831519,-55.74185736,0.0001116,2]
[332623496,1721371831529,-3363.52112386,0.0001145,2]
[332623497,1721371831538,-202.00418831,0.0001155,2]
[332623498,1721371831547,-159.09090106,0.0001155,2]
[332623499,1721371831557,-534.9197,0.0001175,2]
[332623500,1721371831566,-155.16670978,0.0001175,2]
[332623501,1721371831577,-302.11780374,0.0001175,2]
[332623502,1721371831588,-997.8724334,0.0001175,2]
[332623503,1721371831599,-7315.36648456,0.0001175,2]
[332623504,1721371831610,-250.0,0.0001258,2]
[332623505,1721371831620,-900.0,0.00012602,2]
[332623506,1721371831630,-300.0,0.00012665,2]
[332623507,1721371831640,-300.0,0.00012665,2]
[332623508,1721371831650,-3536.31,0.00012666,2]
[332623509,1721371831660,-1229.51,0.0001274,2]
[332623510,1721371831670,-200.0,0.00012923,2]
[332623511,1721371831680,-229.27,0.00012925,2]
[332623512,1721371831690,-385.1,0.00012957,2]
[332623513,1721371831700,-500.0,0.00012968,2]
[332623514,1721371831710,-204.18664002,0.00013,2]
[332623515,1721371831719,-367.8954424,0.00013,2]
[332623516,1721371831729,-155.0,0.00013,2]
[332623517,1721371831739,-192.36143301,0.00013074,2]
[332623518,1721371831751,-644.12856699,0.00013074,2]
[332623519,1721371831760,-365.00313861,0.00013199,2]
[332623520,1721371831770,-593.972778,0.00013283,2]
[332623521,1721371831780,-155.0,0.00013283,2]
[332623522,1721371831789,-330.15183,0.00013297,2]
[332623523,1721371831799,-1255.14092913,0.00013303,2]
[332623524,1721371831809,-420.32699895,0.0001331,2]
[332623525,1721371831819,-2.37575832,0.0001331,2]
[332623526,1721371831830,-245.29556493,0.0001331,2]
[332623527,1721371831839,-196.61750891,0.0001331,2]
[332623528,1721371831849,-155.23001497,0.0001331,2]
[332623529,1721371831860,-890.50362859,0.00013378,2]
[332623531,1721371831870,-155.0,0.00013378,2]
[332623533,1721371831879,-266.76659385,0.00013378,2]
[332623535,1721371831888,-155.0,0.00013378,2]
[332623536,1721371831898,-110.05668875,0.00013378,2]
[332623537,1721371832016,-780.44693984,0.00013378,2]
[332623538,1721371832026,-150.0,0.00013459,2]
[332623539,1721371832036,-2508.12017598,0.0001346,2]
[332623540,1721371832046,-299.93467408,0.0001346,2]
[332623541,1721371832055,-750.0,0.0001346,2]
[332623542,1721371832065,-378.11175812,0.00013522,2]
[332623543,1721371832076,-194.03824188,0.00013522,2]
[332623544,1721371832086,-1435.38748872,0.00013698,2]
[332623545,1721371832098,-642.3977412,0.00013698,2]
[332623546,1721371832112,-8448.00612329,0.00013698,2]
[332623547,1721371832122,-1010.99,0.00013699,2]
[332623548,1721371832131,-250.0,0.00013699,2]
[332623549,1721371832141,-1000.0,0.00013722,2]
[332623550,1721371832150,-2026.92,0.00013722,2]
[332623551,1721371832160,-570.7977,0.00013779,2]
[332623553,1721371832170,-712.59063,0.0001386,2]
[332623555,1721371832180,-327.8808,0.0001389,2]
[332623556,1721371832190,-420.0,0.00013894,2]
[332623557,1721371832199,-499.99,0.00013896,2]
[332623558,1721371832210,-911.11470818,0.00013899,2]
[332623559,1721371832221,-178.27228143,0.00013899,2]
[332623560,1721371832230,-5909.1418,0.000139,2]
[332623561,1721371832240,-164.58802391,0.000139,2]
[332623562,1721371832249,-159.40595947,0.000139,2]
[332623563,1721371832259,-150.77817906,0.000139,2]
[332623564,1721371832269,-383.99247552,0.00013921,2]
[332623565,1721371832279,-23900.0,0.00013933,2]
[332623566,1721371832291,-357.89,0.0001398,3]
[332623567,1721371832301,-178.94,0.0001398,3]
[332623568,1721371832315,-536.87,0.0001398,3]
[332623569,1721371832327,-4320.1023584,0.00013989,2]
[332623570,1721371832337,-73520.80298002,0.0001399,2]
[332623571,1721371832367,-1074.32,0.0001399,2]
[332623572,1721371832379,-6592.21208359,0.0001399,2]
[332623573,1721371832390,-5645.46117371,0.0001399,2]
[332623574,1721371832417,-397.56791311,0.0001399,2]
[332623575,1721371837505,-659.75132017,0.00013297,2]
[332623577,1721371837516,-7507.24552294,0.00013297,2]
[332623580,1721371837745,-803.325,0.00013297,2]
[332623581,1721371837757,-19107.56233475,0.00013297,2]
[332623582,1721371837767,-948.63152729,0.0001346,2]
[332623583,1721371837777,-377.17029654,0.0001346,2]
[332623584,1721371837787,-24353.26584148,0.0001399,2]
[332623585,1721371837801,-258.02513641,0.0001399,2]
[332623586,1721371837834,-13904.13520768,0.0001399,2]
[332623587,1721371837844,-150.34969157,0.00013999,2]
[332623588,1721371837854,-921553.61411767,0.00014,2]
[332623589,1721371837868,-1083099.33864,0.00014,2]
[332623590,1721371837880,-730.4022,0.00014,2]
[332623762,1721371839806,-1101.1,0.00014,2]
[332623787,1721371840054,-272.77261886,0.00014,2]
[332623789,1721371840065,-1392.54925059,0.00014,2]
[332623791,1721371840076,-774.4003508,0.00014,2]
[332623793,1721371840087,-736369.98601807,0.00014,2]
[332623830,1721371842480,-378.0947636,0.00014,2]
[332623839,1721371842577,-74939.89428065,0.00014,2]
[332623840,1721371842588,-87665.06358726,0.00014,2]
[332623841,1721371842599,-1722.22563308,0.00014,2]
[332623842,1721371842746,-708304.79769106,0.00014,2]
[332623843,1721371842758,-1101.1,0.00014,2]
[332623844,1721371842769,-300.0,0.00014,2]
[332623845,1721371842782,-2745.0,0.00014,2]
[332623846,1721371842794,-25698.05749881,0.00014,2]
[332623847,1721371842830,-11132.90869594,0.00014,2]
[332623848,1721371842842,-1133.29076634,0.00014,2]
[332624143,1721371846040,-375.93228978,0.00014,2]
[332624147,1721371846065,-159085.55954387,0.00014,2]
[332624155,1721371846137,-550.0,0.00013698,2]
[332624158,1721371846157,-1650.24238056,0.00013698,2]
[332624376,1721371872438,150.0,0.0001106,2]
[332624377,1721371872460,150.0,0.0001106,2]
[332624378,1721371872484,150.0,0.0001106,2]
[332624379,1721371872507,150.0,0.0001106,2]
[332624380,1721371872527,160.63711565,0.0001106,2]
[332624381,1721371872549,15174.90478435,0.0001106,2]
[332624382,1721371930465,372.65019662,0.0001106,2]
[332624383,1721371961596,600.0,0.0001106,2]
[332624384,1721372193346,186.68,0.00010875,2]
[332624392,1721372455436,166.63,0.00010273,2]
[332624394,1721372798043,186.68,9.94e-05,2]
[332624428,1721373031818,-875.37710777,0.00011324,2]
[332624429,1721373031828,-1255.14092913,0.00011525,2]
[332624431,1721373031837,-275.08386142,0.0001185,2]
[332624433,1721373031847,-7651.676023,0.00011898,2]
[332624435,1721373031856,-304.97378037,0.00011959,2]
[332624437,1721373031866,-835.62734368,0.00011959,2]
[332624439,1721373031875,-250.0,0.00011959,2]
[332624441,1721373031885,-158.3648367,0.00012048,2]
[332624443,1721373031894,-164.32825763,0.00012252,2]
[332624444,1721373031904,-8385.53,0.00012318,2]
[332624445,1721373031914,-1054.58,0.00012322,2]
[332624446,1721373031923,-7049.4967732,0.00012397,2]
[332624447,1721373031935,-3476.29458001,0.00012397,2]
[332624448,1721373031945,-150.0,0.0001242,2]
[332624449,1721373031955,-173.85,0.00012454,2]
[332624450,1721373031964,-150.66623924,0.000126,2]
[332624451,1721373031974,-3677.8,0.00012652,2]
[332624452,1721373031984,-3524.16059928,0.00012666,2]
[332624453,1721373031993,-432.89922319,0.0001269,2]
[332624454,1721373032002,-628.94,0.00012749,2]
[332624455,1721373032011,-499.99,0.00012749,2]
[332624456,1721373032021,-1266.87800095,0.00012749,2]
[332624457,1721373032030,-180.74,0.00012775,2]
[332624458,1721373032040,-198.8,0.00012797,2]
[332624459,1721373032049,-263.75418329,0.00012818,2]
[332624460,1721373032058,-521.56986446,0.00012826,2]
[332624461,1721373032071,-800.0,0.00012841,2]
[332624462,1721373032080,-1000.0,0.00012854,2]
[332624463,1721373032090,-250.0,0.00012898,2]
[332624464,1721373032099,-225.43552812,0.00012924,2]
[332624465,1721373032108,-607.26,0.00013165,2]
[332624466,1721373032118,-2836.27119064,0.00013283,2]
[332624467,1721373032127,-3115.53988677,0.00013297,2]
[332624468,1721373032136,-179.99,0.00013302,2]
[332624469,1721373032146,-1893.86617776,0.00013378,2]
[332624470,1721373032156,-2199.77755191,0.00013479,2]
[332624471,1721373032166,-6939.98990535,0.00013579,2]
[332624472,1721373032176,-2382.38683236,0.0001367,2]
[332624473,1721373032185,-717.39,0.00013699,2]
[332624474,1721373032194,-904.58,0.00013699,2]
[332624475,1721373032204,-1500.0,0.00013699,5]
[332624476,1721373032213,-250.0,0.00013699,2]
[332624477,1721373032223,-1445.49306909,0.0001372,2]
[332624478,1721373032233,-1445.49306909,0.0001372,2]
[332624479,1721373032243,-915.64578481,0.00013799,2]
[332624480,1721373032252,-1084.39457141,0.00013799,2]
[332624481,1721373032262,-1296.0883436,0.00013859,2]
[332624482,1721373032271,-273.24854173,0.00013889,2]
[332624483,1721373032281,-164.07250622,0.00013889,2]